fUSD/lending_fUSD_20250705
["ID","MTS","AMOUNT","RATE_DAILY","PERIOD"]
[369650372,1751675453363,-384.977021,0.00022551,2]
[369650373,1751675453373,-413.399215,0.00022551,2]
[369650374,1751675453382,-441.821409,0.00022551,2]
[369650375,1751675453392,-200.43569871,0.00022551,2]
[369650376,1751675453403,-269.80790429,0.00022551,2]
[369650377,1751675453413,-214.869658,0.00022554,7]
[369650378,1751675453423,-151.0,0.00022554,7]
[369650379,1751675453433,-223.25036,0.00022554,7]
[369650380,1751675453443,-183.46124195,0.00022554,7]
[369650381,1751675453502,-500.0,0.00022129,2]
[369650382,1751675453512,-29.05919989,0.00022129,2]
[369650383,1751675453523,-470.94080011,0.00022129,2]
[369650384,1751675453533,-500.0,0.00022129,2]
[369650385,1751675453543,-39.78911805,0.00022554,7]
[369650386,1751675453553,-151.0,0.00022554,7]
[369650387,1751675453562,-151.0,0.00022554,7]
[369650388,1751675453572,-151.0,0.00022554,7]
[369650389,1751675453582,-151.0,0.00022554,7]
[369650390,1751675453595,-11.38613058,0.00022554,7]
[369650391,1751675455564,-640.0,0.0002191,2]
[369650392,1751675455574,-600.0,0.00022115,2]
[369650393,1751675455584,-497.44106936,0.00022115,2]
[369650394,1751675455594,-617.97098816,0.00022129,2]
[369650395,1751675455603,-500.0,0.00022129,2]
[369650396,1751675455612,-500.0,0.00022129,2]
[369650397,1751675455622,-500.0,0.00022129,2]
[369650398,1751675455631,-500.0,0.00022129,2]
[369650399,1751675455641,-500.0,0.00022129,2]
[369650400,1751675455650,-500.0,0.00022129,2]
[369650401,1751675455659,-500.0,0.00022129,2]
[369650402,1751675455668,-431.37840291,0.00022129,2]
[369650403,1751675455678,-94.81892545,0.00022129,2]
[369650404,1751675455739,-405.18107455,0.00022129,2]
[369650405,1751675455749,-500.0,0.00022129,2]
[369650406,1751675455758,-500.0,0.00022129,2]
[369650407,1751675455767,-218.623952,0.00022129,2]
[369650408,1751675455777,-600.0,0.00022215,2]
[369650409,1751675455786,-600.0,0.00022215,2]
[369650410,1751675455795,-139.61386942,0.00022554,7]
[369650411,1751675455804,-151.0,0.00022554,7]
[369650412,1751675455813,-151.0,0.00022554,7]
[369650413,1751675455822,-281.848988,0.00022554,7]
[369650414,1751675455832,-235.408729,0.00022554,7]
[369650415,1751675455841,-235.408729,0.00022554,7]
[369650416,1751675455850,-151.0,0.00022554,7]
[369650417,1751675455859,-159.917674,0.00022554,7]
[369650418,1751675455868,-159.917674,0.00022554,7]
[369650419,1751675455877,-151.0,0.00022554,7]
[369650420,1751675455886,-5403.61603,0.00022554,7]
[369650421,1751675455895,-5082.33715398,0.00022554,7]
[369650422,1751675455952,-321.27887602,0.00022554,7]
[369650423,1751675455962,-680.113629,0.00022554,7]
[369650424,1751675455971,-680.113629,0.00022554,7]
[369650425,1751675455985,-398.430716,0.00022554,7]
[369650426,1751675455998,-398.430716,0.00022554,7]
[369650427,1751675456011,-822.337593,0.00022554,7]
[369650428,1751675456024,-822.337593,0.00022554,7]
[369650429,1751675456034,-151.0,0.00022566,7]
[369650430,1751675456045,-151.0,0.00022566,7]
[369650431,1751675456056,-151.0,0.00022566,7]
[369650432,1751675456068,-150.0,0.00022566,2]
[369650433,1751675456080,-35767.36401684,0.00022566,3]
[369650434,1751675456092,-23714.89461953,0.00022567,2]
[369650435,1751675457772,-600.0,0.00022215,2]
[369650436,1751675457783,-600.0,0.00022215,2]
[369650437,1751675457794,-600.0,0.00022315,2]
[369650438,1751675457804,-398723.5581295,0.00022567,2]
[369650439,1751675457815,-150.0,0.00022567,2]
[369650440,1751675457825,-150.0,0.00022567,2]
[369650441,1751675457835,-557.0,0.00022567,2]
[369650442,1751675457846,-150.0,0.00022567,2]
[369650443,1751675457857,-709.0,0.00022567,2]
[369650444,1751675457868,-500.0,0.00022567,2]
[369650445,1751675457878,-452.0,0.00022567,2]
[369650446,1751675457888,-500.0,0.00022567,2]
[369650447,1751675457899,-150.0,0.00022567,2]
[369650448,1751675457909,-150.0,0.00022567,2]
[369650449,1751675457919,-500.0,0.00022567,2]
[369650450,1751675457933,-150.0,0.00022567,2]
[369650451,1751675457944,-500.0,0.00022567,2]
[369650452,1751675457954,-500.0,0.00022567,2]
[369650453,1751675457965,-2071.0,0.00022567,2]
[369650454,1751675457975,-150.0,0.00022567,2]
[369650455,1751675457986,-500.0,0.00022567,5]
[369650456,1751675457996,-600.0,0.00022567,2]
[369650457,1751675458007,-230.29941348,0.00022567,2]
[369650458,1751675458018,-500.0,0.00022567,2]
[369650459,1751675458028,-431.0,0.00022567,2]
[369650460,1751675458039,-1414.0,0.00022567,2]
[369650461,1751675458049,-500.0,0.00022567,2]
[369650462,1751675458060,-2419.0,0.00022567,2]
[369650463,1751675458070,-150.0,0.00022567,2]
[369650464,1751675458080,-150.0,0.00022567,2]
[369650465,1751675458091,-500.0,0.00022567,2]
[369650466,1751675458102,-151.62912378,0.00022567,2]
[369650467,1751675458112,-155.98213861,0.00022567,2]
[369650468,1751675458123,-150.0,0.00022567,2]
[369650469,1751675458133,-150.0,0.00022567,2]
[369650470,1751675458144,-1058.0,0.00022567,2]
[369650471,1751675458155,-1058.0,0.00022567,2]
[369650472,1751675458165,-500.0,0.00022567,2]
[369650473,1751675458176,-151.0,0.00022567,7]
[369650474,1751675458188,-151.0,0.00022567,7]
[369650475,1751675458199,-151.0,0.00022567,7]
[369650476,1751675458210,-151.0,0.00022567,7]
[369650477,1751675458221,-151.0,0.00022567,7]
[369650478,1751675458232,-151.0,0.00022567,7]
[369650479,1751675458242,-151.0,0.00022567,7]
[369650480,1751675458253,-151.0,0.00022567,7]
[369650481,1751675458263,-151.0,0.00022567,7]
[369650482,1751675458274,-151.0,0.00022567,7]
[369650483,1751675458284,-151.0,0.00022567,7]
[369650484,1751675458297,-151.0,0.00022567,7]
[369650485,1751675458311,-176.709846,0.00022567,7]
[369650486,1751675458321,-176.709846,0.00022567,7]
[369650487,1751675458332,-151.0,0.00022567,7]
[369650488,1751675458342,-151.0,0.00022567,7]
[369650489,1751675458353,-213.905438,0.00022567,7]
[369650490,1751675458363,-151.0,0.00022567,7]
[369650491,1751675458374,-151.0,0.00022567,7]
[369650492,1751675458386,-154.103951,0.00022567,7]
[369650493,1751675458396,-151.0,0.00022567,7]
[369650494,1751675458407,-154.103951,0.00022567,7]
[369650495,1751675458419,-175.7429,0.00022567,7]
[369650496,1751675458431,-175.7429,0.00022567,7]
[369650497,1751675458442,-441.44313,0.00022567,7]
[369650498,1751675458454,-151.0,0.00022567,7]
[369650499,1751675458465,-441.44313,0.00022567,7]
[369650500,1751675458475,-168.966261,0.00022567,7]
[369650501,1751675458486,-168.966261,0.00022567,7]
[369650502,1751675458496,-194.519872,0.00022567,7]
[369650503,1751675458507,-151.0,0.00022567,7]
[369650504,1751675458517,-194.519872,0.00022567,7]
[369650505,1751675458528,-223.25036,0.00022567,7]
[369650506,1751675458538,-223.25036,0.00022567,7]
[369650507,1751675458549,-581.61293,0.00022567,7]
[369650508,1751675458558,-581.61293,0.00022567,7]
[369650509,1751675458568,-151.0,0.00022567,7]
[369650510,1751675458578,-151.0,0.00022567,7]
[369650511,1751675458591,-204.579638,0.00022567,7]
[369650512,1751675458600,-204.579638,0.00022567,7]
[369650513,1751675459152,-204.579638,0.00022567,7]
[369650514,1751675459179,-204.579638,0.00022567,7]
[369650515,1751675459211,-151.0,0.00022567,7]
[369650516,1751675459230,-151.0,0.00022567,7]
[369650517,1751675459240,-151.0,0.00022567,7]
[369650518,1751675459250,-151.0,0.00022567,7]
[369650519,1751675459260,-151.0,0.00022567,7]
[369650520,1751675459269,-151.0,0.00022567,7]
[369650521,1751675459279,-151.0,0.00022567,7]
[369650522,1751675459289,-151.0,0.00022567,7]
[369650523,1751675459299,-151.0,0.00022567,7]
[369650524,1751675459308,-151.0,0.00022567,7]
[369650525,1751675459318,-151.0,0.00022567,7]
[369650526,1751675459328,-151.0,0.00022567,7]
[369650527,1751675459338,-151.0,0.00022567,7]
[369650528,1751675459348,-3890.481765,0.00022567,7]
[369650529,1751675459360,-151.0,0.00022567,7]
[369650530,1751675459370,-151.0,0.00022567,7]
[369650531,1751675459381,-151.0,0.00022567,7]
[369650532,1751675459391,-151.0,0.00022567,7]
[369650533,1751675459401,-151.0,0.00022567,7]
[369650534,1751675459411,-151.0,0.00022567,7]
[369650535,1751675459420,-235.408729,0.00022567,7]
[369650536,1751675459430,-235.408729,0.00022567,7]
[369650537,1751675459441,-151.0,0.00022567,7]
[369650538,1751675459450,-151.0,0.00022567,7]
[369650539,1751675459459,-260.588592,0.00022567,7]
[369650540,1751675459470,-260.588592,0.00022567,7]
[369650541,1751675459480,-1337.735196,0.00022567,7]
[369650542,1751675459491,-260.588592,0.00022567,7]
[369650543,1751675459500,-260.588592,0.00022567,7]
[369650544,1751675459510,-151.0,0.00022567,7]
[369650545,1751675459520,-1337.735196,0.00022567,7]
[369650546,1751675459530,-151.0,0.00022567,7]
[369650547,1751675459541,-159.917674,0.00022567,7]
[369650548,1751675459550,-151.0,0.00022567,7]
[369650549,1751675459560,-159.917674,0.00022567,7]
[369650550,1751675459570,-151.0,0.00022567,7]
[369650551,1751675459579,-151.0,0.00022567,7]
[369650552,1751675459591,-151.0,0.00022567,7]
[369650553,1751675459600,-151.0,0.00022567,7]
[369650554,1751675459609,-151.0,0.00022567,7]
[369650555,1751675459618,-151.0,0.00022567,7]
[369650556,1751675459627,-151.0,0.00022567,7]
[369650557,1751675459638,-151.0,0.00022567,7]
[369650558,1751675459647,-151.0,0.00022567,7]
[369650559,1751675459656,-151.0,0.00022567,7]
[369650560,1751675459666,-151.0,0.00022567,7]
[369650561,1751675459676,-296.093544,0.00022567,7]
[369650562,1751675459685,-151.0,0.00022567,7]
[369650563,1751675459694,-5403.61603,0.00022567,7]
[369650564,1751675459702,-5403.61603,0.00022567,7]
[369650565,1751675459711,-151.0,0.00022567,7]
[369650566,1751675459720,-680.113629,0.00022567,7]
[369650567,1751675459729,-680.113629,0.00022567,7]
[369650568,1751675459738,-151.0,0.00022567,7]
[369650569,1751675459747,-151.0,0.00022567,7]
[369650570,1751675459756,-398.430716,0.00022567,7]
[369650571,1751675459765,-398.430716,0.00022567,7]
[369650572,1751675459775,-151.0,0.00022567,7]
[369650573,1751675459784,-151.0,0.00022567,7]
[369650574,1751675459793,-151.0,0.00022567,7]
[369650575,1751675459802,-151.0,0.00022567,7]
[369650576,1751675459811,-151.0,0.00022567,7]
[369650577,1751675459820,-151.0,0.00022567,7]
[369650578,1751675459829,-223.496087,0.00022567,7]
[369650579,1751675459838,-223.496087,0.00022567,7]
[369650580,1751675459847,-815.749204,0.00022567,7]
[369650581,1751675459857,-815.749204,0.00022567,7]
[369650582,1751675459866,-151.0,0.00022567,7]
[369650583,1751675459875,-385.720521,0.00022567,7]
[369650584,1751675459884,-385.720521,0.00022567,7]
[369650585,1751675459894,-385.720521,0.00022567,7]
[369650586,1751675459904,-385.720521,0.00022567,7]
[369650587,1751675459913,-151.0,0.00022567,7]
[369650588,1751675459923,-822.337593,0.00022567,7]
[369650589,1751675459932,-822.337593,0.00022567,7]
[369650590,1751675459941,-151.0,0.00022569,7]
[369650591,1751675459951,-400.0,0.0002257,2]
[369650592,1751675459960,-500.0,0.00022573,2]
[369650593,1751675459970,-550.48020674,0.00022573,2]
[369650594,1751675459979,-164.81116676,0.00022573,2]
[369650595,1751675459988,-500.0,0.00022573,2]
[369650596,1751675459998,-500.0,0.00022573,2]
[369650597,1751675460007,-500.0,0.00022573,2]
[369650598,1751675460016,-500.0,0.00022573,2]
[369650599,1751675460026,-500.0,0.00022573,2]
[369650600,1751675460035,-500.0,0.00022573,2]
[369650601,1751675460044,-507.16669325,0.00022573,2]
[369650602,1751675460054,-500.0,0.00022573,2]
[369650603,1751675460064,-500.0,0.00022573,2]
[369650604,1751675460074,-500.0,0.00022573,2]
[369650605,1751675460083,-190.16852511,0.00022583,2]
[369650606,1751675460093,-151.0,0.00022585,7]
[369650607,1751675460102,-151.0,0.00022585,7]
[369650608,1751675460112,-151.0,0.00022585,7]
[369650609,1751675460121,-902.0,0.00022594,2]
[369650610,1751675460131,-998.28764635,0.00022599,2]
[369650611,1751675460140,-207.0,0.00022599,2]
[369650612,1751675460149,-207.0,0.00022599,2]
[369650613,1751675460158,-207.0,0.00022599,2]
[369650614,1751675460167,-215.0,0.00022599,2]
[369650615,1751675460176,-215.0,0.00022599,2]
[369650616,1751675460186,-215.0,0.00022599,2]
[369650617,1751675460195,-212.0,0.00022599,2]
[369650618,1751675460204,-212.0,0.00022599,2]
[369650619,1751675460213,-212.0,0.00022599,2]
[369650620,1751675460222,-212.0,0.00022599,2]
[369650621,1751675460231,-545295.48772794,0.000226,3]
[369650622,1751675460240,-200.85668,0.000226,7]
[369650623,1751675460250,-151.0,0.000226,7]
[369650624,1751675460259,-151.0,0.000226,7]
[369650625,1751675460269,-836.43952577,0.000226,3]
[369650626,1751675460279,-22749.7770192,0.000226,7]
[369650627,1751675460295,-57250.2229808,0.000226,7]
[369650628,1751675460304,-151.0,0.000226,7]
[369650629,1751675460314,-151.0,0.000226,7]
[369650630,1751675460323,-151.0,0.000226,7]
[369650631,1751675460332,-151.0,0.000226,7]
[369650632,1751675460342,-151.0,0.000226,7]
[369650633,1751675460351,-151.0,0.000226,7]
[369650634,1751675460362,-1337.735196,0.000226,7]
[369650635,1751675460371,-151.0,0.000226,7]
[369650636,1751675460381,-1337.735196,0.000226,7]
[369650637,1751675460390,-151.0,0.000226,7]
[369650638,1751675460399,-151.0,0.000226,7]
[369650639,1751675460409,-151.0,0.000226,7]
[369650640,1751675460418,-151.0,0.000226,7]
[369650641,1751675460428,-190.221456,0.000226,7]
[369650642,1751675460438,-151.0,0.000226,7]
[369650643,1751675460447,-151.0,0.000226,7]
[369650644,1751675460458,-151.0,0.000226,7]
[369650645,1751675460467,-151.0,0.000226,7]
[369650646,1751675460477,-210.26882792,0.000226,7]
[369650647,1751675460486,-163.65,0.0002262,2]
[369650648,1751675460496,-207.0,0.0002265,2]
[369650649,1751675460505,-215.0,0.0002265,2]
[369650650,1751675460515,-578.0,0.00022658,2]
[369650651,1751675460524,-151.0,0.00022658,7]
[369650652,1751675460533,-151.0,0.00022658,7]
[369650653,1751675460542,-246.992141,0.00022658,7]
[369650654,1751675460552,-151.0,0.00022658,7]
[369650655,1751675460561,-151.0,0.00022658,7]
[369650656,1751675460571,-151.0,0.00022658,7]
[369650657,1751675460580,-151.0,0.00022658,7]
[369650658,1751675460593,-151.0,0.00022658,7]
[369650659,1751675460602,-151.0,0.00022658,7]
[369650660,1751675460611,-151.0,0.00022658,7]
[369650661,1751675460620,-160.631344,0.00022658,7]
[369650662,1751675460630,-235.408729,0.00022658,7]
[369650663,1751675460639,-235.408729,0.00022658,7]
[369650664,1751675460649,-285.896174,0.00022658,7]
[369650665,1751675460659,-159.917674,0.00022658,7]
[369650666,1751675460668,-159.917674,0.00022658,7]
[369650667,1751675460678,-5403.61603,0.00022658,7]
[369650668,1751675460688,-5403.61603,0.00022658,7]
[369650669,1751675460698,-680.113629,0.00022658,7]
[369650670,1751675460707,-680.113629,0.00022658,7]
[369650671,1751675460716,-398.430716,0.00022658,7]
[369650672,1751675460725,-398.430716,0.00022658,7]
[369650673,1751675460734,-151.0,0.00022658,7]
[369650674,1751675460743,-151.0,0.00022658,7]
[369650675,1751675460752,-151.0,0.00022658,7]
[369650677,1751675460762,-151.0,0.00022658,7]
[369650678,1751675460771,-151.0,0.00022658,7]
[369650679,1751675460780,-223.496087,0.00022658,7]
[369650680,1751675460790,-223.496087,0.00022658,7]
[369650681,1751675460799,-815.749204,0.00022658,7]
[369650682,1751675460808,-815.749204,0.00022658,7]
[369650683,1751675460817,-151.0,0.00022658,7]
[369650684,1751675460826,-822.337593,0.00022658,7]
[369650685,1751675460835,-822.337593,0.00022658,7]
[369650686,1751675460843,-2500.0,0.00022664,2]
[369650687,1751675460852,-151.0,0.00022666,7]
[369650688,1751675460862,-151.0,0.00022666,7]
[369650689,1751675460871,-151.0,0.00022666,7]
[369650690,1751675460880,-154.103951,0.00022666,7]
[369650691,1751675460889,-154.103951,0.00022666,7]
[369650692,1751675460898,-175.7429,0.00022666,7]
[369650693,1751675460907,-175.7429,0.00022666,7]
[369650694,1751675460916,-441.44313,0.00022666,7]
[369650695,1751675460926,-441.44313,0.00022666,7]
[369650696,1751675460936,-168.966261,0.00022666,7]
[369650697,1751675460945,-168.966261,0.00022666,7]
[369650698,1751675460954,-194.519872,0.00022666,7]
[369650699,1751675460963,-194.519872,0.00022666,7]
[369650700,1751675460973,-151.0,0.00022666,7]
[369650701,1751675460982,-151.0,0.00022666,7]
[369650702,1751675460992,-151.0,0.00022666,7]
[369650703,1751675461001,-151.0,0.00022666,7]
[369650704,1751675461010,-151.0,0.00022666,7]
[369650705,1751675461019,-151.0,0.00022667,7]
[369650706,1751675461028,-151.0,0.00022667,7]
[369650707,1751675461037,-151.0,0.00022667,7]
[369650708,1751675461046,-151.0,0.00022667,7]
[369650709,1751675461055,-151.0,0.00022667,7]
[369650710,1751675461065,-151.0,0.00022667,7]
[369650711,1751675461074,-151.0,0.00022667,7]
[369650712,1751675461083,-176.709846,0.00022667,7]
[369650713,1751675461093,-176.709846,0.00022667,7]
[369650714,1751675461102,-151.0,0.00022667,7]
[369650715,1751675461111,-151.0,0.00022667,7]
[369650716,1751675461120,-223.25036,0.00022667,7]
[369650717,1751675461129,-223.25036,0.00022667,7]
[369650718,1751675461138,-204.579638,0.00022667,7]
[369650719,1751675461148,-204.579638,0.00022667,7]
[369650720,1751675461157,-151.0,0.00022667,7]
[369650721,1751675461166,-151.0,0.00022667,7]
[369650722,1751675461176,-3890.481765,0.00022667,7]
[369650723,1751675461186,-260.588592,0.00022667,7]
[369650724,1751675461195,-260.588592,0.00022667,7]
[369650725,1751675461204,-151.0,0.00022667,7]
[369650726,1751675461214,-151.0,0.00022667,7]
[369650727,1751675461223,-100099.1232554,0.00022667,2]
[369650728,1751675461232,-151.0,0.00022667,7]
[369650729,1751675461241,-159.38,0.00022672,2]
[369650730,1751675461251,-300.0,0.0002268,2]
[369650731,1751675461261,-151.0,0.00022682,7]
[369650732,1751675461270,-151.0,0.00022682,7]
[369650733,1751675461280,-151.0,0.00022682,7]
[369650734,1751675461289,-151.0,0.00022682,7]
[369650735,1751675461298,-151.0,0.00022682,7]
[369650736,1751675461308,-151.0,0.00022682,7]
[369650737,1751675461317,-151.0,0.00022682,7]
[369650738,1751675461326,-151.0,0.00022682,7]
[369650739,1751675461335,-151.0,0.00022682,7]
[369650740,1751675461345,-150.0,0.00022682,2]
[369650741,1751675461355,-19522.60021188,0.00022683,2]
[369650742,1751675461364,-167205.14240858,0.00022683,7]
[369650743,1751675461382,-1266.99665791,0.00022683,7]
[369650744,1751675461491,-420.30840863,0.00020499,2]
[369650745,1751675461501,-335.72159137,0.00022683,7]
[369650746,1751675461513,-826.83455851,0.00022683,7]
[369650747,1751675483127,12500.0,0.00010959,2]
[369650748,1751675501736,12500.0,0.0001095,2]
[369650749,1751675547398,798.5559094,0.00030136,120]
[369650750,1751675551182,150.0,0.0002628,120]
[369650751,1751675593619,2000.0,0.00026628,120]
[369650752,1751675610555,150.0,0.00029652,120]
[369650753,1751675666442,374.8318231,0.000301,120]
[369650754,1751675717766,1306.64,0.0003013,120]
[369650755,1751675730772,150.0,0.00028801,120]
[369650756,1751675850740,150.0,0.00028566,120]
[369650757,1751676151242,150.0,0.00027501,120]
[369650758,1751676162384,5800.0,0.00013537,2]
[369650759,1751676185107,5800.0,0.00013529,2]
[369650760,1751676208487,5800.0,0.0001352,2]
[369650761,1751676231656,5800.0,0.00013512,2]
[369650762,1751676254376,5800.0,0.00013503,2]
[369650763,1751676277570,5800.0,0.00013495,2]
[369650764,1751676278369,12500.0,0.00010959,2]
[369650765,1751676297104,12500.0,0.0001095,2]
[369650766,1751676299705,5800.0,0.00013486,2]
[369650767,1751676315868,12500.0,0.00010941,2]
[369650768,1751676322137,5800.0,0.00013478,2]
[369650769,1751676344755,5800.0,0.00013469,2]
[369650770,1751676367100,5800.0,0.00013461,2]
[369650787,1751676550282,154.62,0.00013699,2]
[369650794,1751676632096,-516.0,0.00019575,2]
[369650795,1751676632106,-250.0,0.00019648,2]
[369650796,1751676632115,-666.0,0.00021193,2]
[369650797,1751676632124,-1200.0,0.00021206,2]
[369650798,1751676632134,-11980.07,0.00021207,2]
[369650799,1751676632145,-1000.0,0.00021241,2]
[369650800,1751676632156,-163.18,0.00021267,2]
[369650801,1751676632166,-200.0,0.0002127,7]
[369650802,1751676632202,-173.37,0.00021284,2]
[369650803,1751676632214,-200.0,0.00021333,2]
[369650804,1751676632225,-264.12,0.0002139,2]
[369650805,1751676632237,-313.44,0.00021421,2]
[369650806,1751676632247,-150.0,0.00021578,2]
[369650807,1751676632257,-164.05,0.00021578,2]
[369650808,1751676632266,-300.0,0.00021578,2]
[369650809,1751676632277,-150.0,0.00021578,2]
[369650810,1751676632287,-150.0,0.00021578,2]
[369650811,1751676632297,-165.17,0.00021586,2]
[369650812,1751676632307,-165.17,0.00021601,2]
[369650813,1751676632317,-207.4,0.00021604,2]
[369650814,1751676632328,-22832.17554742,0.00021616,2]
[369650815,1751676632341,-3425.0999998,0.00021616,2]
[369650816,1751676632401,-307.49219829,0.00021616,2]
[369650817,1751676632412,-784.64000021,0.00021616,2]
[369650821,1751676632467,-441.681,0.00021616,2]
[369650823,1751676632479,-2381.04070713,0.00021616,2]
[369650824,1751676632491,-2226.51974199,0.00021616,2]
[369650825,1751676632531,-1000.0,0.00021616,2]
[369650826,1751676632542,-7947.29745844,0.00021616,2]
[369650827,1751676632554,-1196.24144624,0.00021616,2]
[369650830,1751676632621,-1653.72,0.00021616,2]
[369650833,1751676632633,-690.3572683,0.00021616,2]
[369650837,1751676632645,-791.49937177,0.00021616,2]
[369650849,1751676632701,-10702.22454074,0.00021616,2]
[369651072,1751676638842,-440.14763214,0.00021616,2]
[369651089,1751676638991,-31885.75267921,0.00021616,2]
[369651149,1751676640236,-20294.94458507,0.00021616,2]
[369651150,1751676640247,-253.09871949,0.00021616,2]
[369651151,1751676640258,-303.15271724,0.00021616,2]
[369651152,1751676640291,-101170.37742452,0.00021616,2]
[369651153,1751676640302,-165.17,0.00021617,2]
[369651154,1751676640314,-17823.41,0.00021617,2]
[369651155,1751676640324,-165.17,0.00021632,2]
[369651156,1751676640335,-165.17,0.00021648,2]
[369651157,1751676640346,-165.17,0.00021663,2]
[369651158,1751676640356,-165.17,0.00021678,2]
[369651159,1751676640366,-165.17,0.00021694,2]
[369651160,1751676640375,-168.0,0.00021727,2]
[369651161,1751676640384,-500.0,0.00021755,2]
[369651162,1751676640393,-214.99,0.00021817,2]
[369651163,1751676640402,-150.0,0.00021852,2]
[369651164,1751676640411,-184.77975921,0.00021891,2]
[369651165,1751676640422,-500.0,0.00021891,2]
[369651166,1751676640433,-300.0,0.00021891,2]
[369651167,1751676640443,-500.0,0.00021891,2]
[369651168,1751676640452,-500.0,0.00021891,2]
[369651169,1751676640462,-162.80343237,0.00021891,2]
[369651170,1751676640471,-160.0,0.00021891,2]
[369651171,1751676640481,-500.0,0.00021891,2]
[369651172,1751676640491,-500.0,0.00021891,2]
[369651173,1751676640501,-500.0,0.00021891,2]
[369651174,1751676640510,-500.0,0.00021891,2]
[369651175,1751676640520,-500.0,0.00021891,2]
[369651176,1751676640529,-500.0,0.00021891,2]
[369651177,1751676640538,-500.0,0.00021891,2]
[369651178,1751676640547,-500.0,0.00021891,2]
[369651179,1751676640556,-500.0,0.00021891,2]
[369651180,1751676640565,-500.0,0.00021891,2]
[369651181,1751676640574,-500.0,0.00021891,2]
[369651182,1751676640583,-300.0,0.00021891,2]
[369651183,1751676640592,-500.0,0.00021891,2]
[369651184,1751676640601,-500.0,0.00021891,2]
[369651185,1751676640611,-300.0,0.00021891,2]
[369651190,1751676640827,-500.0,0.00021891,2]
[369651191,1751676640837,-300.0,0.00021891,2]
[369651192,1751676640846,-500.0,0.00021891,2]
[369651193,1751676640856,-500.0,0.00021891,2]
[369651194,1751676640865,-300.0,0.00021891,2]
[369651195,1751676640874,-300.0,0.00021891,2]
[369651196,1751676640884,-500.0,0.00021891,2]
[369651197,1751676640894,-500.0,0.00021891,2]
[369651198,1751676640903,-300.0,0.00021891,2]
[369651199,1751676640912,-500.0,0.00021891,2]
[369651200,1751676640921,-300.0,0.00021891,2]
[369651201,1751676640930,-300.0,0.00021891,2]
[369651202,1751676640939,-300.0,0.00021891,2]
[369651203,1751676640948,-300.0,0.00021891,2]
[369651204,1751676640958,-300.0,0.00021891,2]
[369651205,1751676640967,-300.0,0.00021891,2]
[369651206,1751676640975,-300.0,0.00021891,2]
[369651207,1751676640985,-300.0,0.00021891,2]
[369651208,1751676640994,-200.0,0.00021891,2]
[369651209,1751676641004,-300.0,0.00021891,2]
[369651210,1751676641014,-300.0,0.00021891,2]
[369651211,1751676641024,-300.0,0.00021891,2]
[369651212,1751676641033,-200.0,0.00021891,2]
[369651213,1751676641043,-300.0,0.00021891,2]
[369651214,1751676641051,-200.0,0.00021891,2]
[369651215,1751676641061,-300.0,0.00021891,2]
[369651216,1751676641070,-200.0,0.00021891,2]
[369651217,1751676641079,-300.0,0.00021891,2]